bitfinex/quotes_BTCUSD_20230114
["timestamp","ask_amount","ask_price","bid_price","bid_amount"]
[1673691559772,0.23742453,20452.0,20450.0,0.15369509]
[1673691560255,0.23742453,20452.0,20447.0,1.26138064]
[1673691560505,0.23742453,20452.0,20448.0,0.20105273]
[1673691561000,0.19851943,20451.0,20448.0,0.20105273]
[1673691561473,0.19851943,20451.0,20449.0,0.16723]
[1673691561726,0.1751,20452.0,20449.0,0.19072595]
[1673691561969,0.56938862,20454.0,20450.0,0.19922595]
[1673691561970,0.00098362,20454.0,20450.0,0.19922595]
[1673691562201,0.00098362,20454.0,20451.0,0.19072595]
[1673691562202,0.017,20452.0,20451.0,0.19072595]
[1673691562449,0.017,20452.0,20451.0,0.0085]
[1673691562689,0.046,20452.0,20451.0,0.0085]
[1673691562923,0.18826635,20454.0,20451.0,0.0085]
[1673691563182,0.18826635,20454.0,20452.0,0.0085]
[1673691563423,0.15993701,20452.0,20449.0,0.19314817]
[1673691563676,0.14800916,20451.0,20449.0,0.19314817]
[1673691563935,0.95401932,20454.0,20449.0,0.19314817]
[1673691564177,0.0797,20452.0,20449.0,0.38387412]
[1673691564421,0.27151964,20452.0,20449.0,0.19314817]
[1673691565171,0.1470773,20451.0,20449.0,0.19314817]
[1673691565406,0.2267773,20451.0,20449.0,0.012]
[1673691566179,0.2267773,20451.0,20448.0,0.14331194]
[1673691566412,0.2407773,20451.0,20449.0,0.0205]
[1673691566648,0.2407773,20451.0,20449.0,0.16858443]
[1673691567644,0.1610773,20451.0,20449.0,0.16858443]
[1673691567900,0.014,20451.0,20450.0,0.15579954]
[1673691568143,0.014,20451.0,20450.0,0.0085]
[1673691568904,0.15072979,20453.0,20450.0,0.15306361]
[1673691569187,0.015,20451.0,20450.0,0.16506361]
[1673691569478,0.19669947,20451.0,20450.0,0.012]
[1673691569706,1.00847647,20451.0,20450.0,0.012]
[1673691569962,0.99347647,20451.0,20447.0,0.19784702]
[1673691570211,1.00595644,20451.0,20450.0,0.011]
[1673691570458,1.37267647,20451.0,20450.0,0.011]
[1673691570712,1.07267647,20451.0,20450.0,0.011]
[1673691570948,1.07267647,20451.0,20448.0,0.19552358]
[1673691571196,1.07267647,20451.0,20449.0,0.17471707]
[1673691571197,0.0796,20450.0,20449.0,0.17471707]
[1673691571442,0.0796,20450.0,20447.0,0.01411464]
[1673691571684,0.24574285,20450.0,20448.0,0.1474836]
[1673691572430,0.26814285,20450.0,20449.0,0.001]
[1673691572678,0.16614285,20450.0,20448.0,0.1474836]
[1673691572933,0.19514285,20450.0,20448.0,0.1494836]
[1673691575724,0.19514285,20450.0,20448.0,0.002]
[1673691575990,0.1584,20449.0,20448.0,0.002]
[1673691576243,2.23644769,20449.0,20448.0,0.002]
[1673691576491,2.33644769,20449.0,20448.0,0.002]
[1673691576741,1.559246,20449.0,20448.0,0.002]
[1673691577238,1.7308337,20449.0,20448.0,0.002]
[1673691577491,1.6308337,20449.0,20447.0,0.01411464]
[1673691577739,1.193042,20449.0,20448.0,0.001]
[1673691577981,1.77133674,20449.0,20447.0,0.01411464]
[1673691578284,0.321301,20448.0,20447.0,0.01411464]
[1673691578489,0.810346,20448.0,20447.0,0.01411464]
[1673691578750,0.710346,20448.0,20447.0,0.01511464]
[1673691579239,0.65872383,20448.0,20447.0,0.01511464]
[1673691579493,0.803021,20449.0,20447.0,0.01511464]
[1673691579494,0.135,20449.0,20447.0,0.01511464]
[1673691579725,0.135,20449.0,20447.0,0.16900685]
[1673691579968,0.135,20449.0,20448.0,0.06061]
[1673691580211,0.0002,20451.0,20448.0,0.06061]
[1673691580472,0.0002,20451.0,20447.0,0.16800685]
[1673691580473,0.16555573,20449.0,20447.0,0.01611464]
[1673691580719,0.15502214,20448.0,20447.0,0.01411464]
[1673691580963,0.15502214,20448.0,20447.0,0.03411464]
[1673691581690,0.64406714,20448.0,20447.0,0.01411464]
[1673691581918,0.67206714,20448.0,20447.0,0.01811464]
[1673691582200,0.64406714,20448.0,20447.0,0.01411464]
[1673691582939,0.0794,20449.0,20447.0,0.25195059]
[1673691583178,0.0002,20451.0,20448.0,0.0085]
[1673691583412,0.0002,20451.0,20448.0,0.19922595]
[1673691584141,0.1802761,20452.0,20448.0,0.19922595]
[1673691584383,0.102,20451.0,20448.0,0.50222595]
[1673691584696,0.102,20451.0,20448.0,0.3115]
[1673691584927,0.102,20451.0,20449.0,0.17833192]
[1673691585192,0.00099546,20452.0,20449.0,0.17273328]
[1673691586410,0.10899546,20452.0,20449.0,0.17273328]
[1673691586658,0.00099546,20452.0,20449.0,0.17273328]
[1673691586904,0.21374357,20452.0,20449.0,0.20473328]
[1673691587375,0.21374357,20452.0,20450.0,0.15975039]
[1673691587860,0.21274811,20452.0,20450.0,0.15975039]
[1673691588341,0.19874811,20452.0,20450.0,0.15975039]
[1673691588611,0.19874811,20452.0,20450.0,0.19075039]
[1673691588612,0.007,20452.0,20450.0,0.19075039]
[1673691589869,0.007,20452.0,20451.0,0.19363724]
[1673691590862,0.16324847,20453.0,20451.0,0.19363724]
[1673691591363,0.20750068,20452.0,20451.0,0.005]
[1673691591624,0.437404,20452.0,20451.0,0.005]
[1673691591855,0.57833656,20452.0,20451.0,0.005]
[1673691592102,0.437404,20452.0,20451.0,0.005]
[1673691592351,0.64366899,20452.0,20451.0,0.005]
[1673691592593,0.64366899,20452.0,20449.0,0.1542471]
[1673691592594,0.55051197,20452.0,20449.0,0.1542471]
[1673691592836,0.22770797,20452.0,20451.0,0.005]
[1673691593318,0.26270797,20452.0,20451.0,0.01]
[1673691593582,0.26270797,20452.0,20449.0,0.1542471]
[1673691593819,0.27670797,20452.0,20450.0,0.0085]
[1673691594051,0.22770797,20452.0,20450.0,0.0085]
[1673691594281,0.26270797,20452.0,20451.0,0.005]
[1673691594513,0.26270797,20452.0,20451.0,0.0085]
[1673691594514,0.22770797,20452.0,20451.0,0.0085]
[1673691594774,0.55051197,20452.0,20451.0,0.0085]
[1673691595033,0.55051197,20452.0,20450.0,0.0085]
[1673691595280,0.221301,20451.0,20450.0,0.0085]
[1673691595515,0.71665897,20452.0,20450.0,0.0395]
[1673691595749,0.72365897,20452.0,20450.0,0.0395]
[1673691595989,0.322804,20451.0,20450.0,0.0395]
[1673691596245,0.86923915,20452.0,20450.0,0.0395]
[1673691596720,0.481204,20451.0,20450.0,0.031]
[1673691596964,0.970177,20451.0,20450.0,0.031]
[1673691597222,0.970177,20451.0,20447.0,0.18868171]
[1673691597478,0.970177,20451.0,20450.0,0.031]
[1673691597479,0.78163234,20451.0,20450.0,0.031]
[1673691597710,0.575673,20451.0,20450.0,0.031]
[1673691598177,0.0867,20451.0,20450.0,0.031]
[1673691599405,0.0867,20451.0,20450.0,0.0395]
[1673691600649,0.28534107,20451.0,20450.0,0.0395]
[1673691601853,0.60814507,20451.0,20450.0,0.0395]
[1673691602105,0.897656,20451.0,20450.0,0.031]
[1673691602337,1.5346885,20451.0,20450.0,0.031]
[1673691602601,1.23650839,20451.0,20450.0,0.031]
[1673691602866,1.4549885,20451.0,20450.0,0.031]
[1673691603112,1.23650839,20451.0,20450.0,0.031]
[1673691603355,1.26191293,20451.0,20450.0,0.031]
[1673691603586,1.40744292,20451.0,20450.0,0.031]
[1673691603840,2.22327483,20451.0,20450.0,0.031]
[1673691604072,1.93196802,20451.0,20450.0,0.031]
[1673691604336,1.63196802,20451.0,20450.0,0.031]
[1673691604575,1.93196802,20451.0,20450.0,0.031]
[1673691605346,1.93196802,20451.0,20450.0,0.00456622]
[1673691605347,2.05562144,20451.0,20450.0,0.00456622]
[1673691605585,2.05562144,20451.0,20447.0,0.00911464]
[1673691605586,2.08518902,20451.0,20447.0,0.00911464]
[1673691605833,0.38496379,20448.0,20447.0,0.00911464]
[1673691606079,1.90465347,20448.0,20447.0,0.00911464]
[1673691607338,1.89378968,20448.0,20447.0,0.00911464]
[1673691607580,2.05051726,20448.0,20447.0,0.00911464]
[1673691607828,2.34049961,20448.0,20447.0,0.00911464]
[1673691608061,2.19478968,20448.0,20447.0,0.00911464]
[1673691608302,2.48494487,20448.0,20447.0,0.00911464]
[1673691608544,2.04053688,20448.0,20447.0,0.00911464]
[1673691608779,2.18651726,20448.0,20447.0,0.00911464]
[1673691609767,2.48651726,20448.0,20447.0,0.00911464]
[1673691610293,2.18651726,20448.0,20447.0,0.00911464]
[1673691610778,1.89478968,20448.0,20447.0,0.00911464]
[1673691611019,2.05569188,20448.0,20447.0,0.00911464]
[1673691611264,2.20135297,20448.0,20447.0,0.00911464]
[1673691611534,2.22063736,20448.0,20447.0,0.00911464]
[1673691611765,2.00184168,20448.0,20447.0,0.00911464]
[1673691612012,1.82165509,20448.0,20447.0,0.00911464]
[1673691612245,2.04045077,20448.0,20447.0,0.00911464]
[1673691612746,3.5100318,20448.0,20447.0,0.00911464]
[1673691612978,3.8677318,20448.0,20447.0,0.00911464]
[1673691613477,3.5096318,20448.0,20447.0,0.00911464]
[1673691613713,3.5096318,20448.0,20443.0,0.01412092]
[1673691613714,0.00841044,20446.0,20443.0,0.01412092]
[1673691613980,0.36367197,20444.0,20443.0,0.01412092]
[1673691614216,0.811945,20444.0,20443.0,0.01412092]
[1673691614473,1.77828769,20444.0,20443.0,0.01412092]
[1673691614721,2.22375648,20444.0,20443.0,0.01412092]
[1673691614966,2.86372932,20444.0,20443.0,0.01412092]
[1673691615210,3.17445586,20444.0,20443.0,0.01412092]
[1673691615441,3.61161247,20444.0,20443.0,0.01412092]
[1673691615696,3.52685803,20444.0,20443.0,0.01412092]
[1673691615933,3.39185803,20444.0,20443.0,0.01412092]
[1673691616182,4.23107772,20444.0,20443.0,0.01412092]
[1673691616446,3.91609906,20444.0,20443.0,0.01412092]
[1673691616691,0.1,20443.0,20442.0,0.01407831]
[1673691616948,3.1721283,20443.0,20442.0,0.01407831]
[1673691617188,3.22082161,20443.0,20442.0,0.01407831]
[1673691617427,0.11407,20442.0,20436.0,0.01436055]
[1673691617685,0.2594,20437.0,20436.0,0.01436055]
[1673691617931,0.1,20436.0,20431.0,0.00716232]
[1673691618173,1.37757163,20437.0,20434.0,0.00019]
[1673691618174,2.17435794,20435.0,20434.0,0.00019]
[1673691618430,2.34779869,20435.0,20434.0,0.00019]
[1673691618670,0.1,20434.0,20431.0,0.00716232]
[1673691618917,0.1793,20432.0,20431.0,0.00716232]
[1673691619168,0.78556494,20432.0,20431.0,0.00716232]
[1673691619422,1.28574663,20432.0,20431.0,6.232e-05]
[1673691619674,1.66544663,20432.0,20431.0,6.232e-05]
[1673691619925,0.1,20431.0,20424.0,2.76411754]
[1673691620209,0.1,20431.0,20426.0,0.16002694]
[1673691620210,2.55041863,20430.0,20426.0,0.16002694]
[1673691620460,1.20644663,20429.0,20426.0,0.00019]
[1673691620703,3.19762579,20428.0,20426.0,0.00019]
[1673691620952,1.13840569,20427.0,20426.0,0.00019]
[1673691621201,1.92795369,20427.0,20426.0,0.00019]
[1673691621460,0.00019,20426.0,20413.0,0.14585193]
[1673691621721,0.02298,20419.0,20412.0,0.7858]
[1673691621986,0.402504,20418.0,20414.0,0.00019]
[1673691622247,1.28802345,20417.0,20414.0,0.00019]
[1673691622496,0.301001,20416.0,20414.0,0.00019]
[1673691622750,1.95937569,20415.0,20414.0,0.00019]
[1673691623261,1.95937569,20415.0,20412.0,0.0316]
[1673691623262,0.1,20414.0,20412.0,0.0316]
[1673691623504,1.70124869,20413.0,20405.0,0.01711334]
[1673691623770,0.47720169,20409.0,20405.0,0.01711334]
[1673691624019,0.47720169,20409.0,20401.0,0.19078484]
[1673691624020,0.1,20405.0,20401.0,0.16132015]
[1673691624256,0.1,20405.0,20400.0,0.080814]
[1673691624257,0.0796,20403.0,20400.0,0.080814]
[1673691624513,0.94411514,20408.0,20400.0,0.080814]
[1673691624760,0.119,20409.0,20401.0,0.89072595]
[1673691625048,0.00097489,20408.0,20402.0,0.19072595]
[1673691625300,0.0002,20414.0,20409.0,0.00021179]
[1673691625527,0.0002,20414.0,20410.0,0.19072595]
[1673691625765,6e-05,20415.0,20413.0,0.0797]
[1673691626016,6e-05,20415.0,20414.0,0.19072595]
[1673691626260,6e-05,20415.0,20414.0,0.19922595]
[1673691626760,6e-05,20415.0,20414.0,0.03736815]
[1673691627006,6e-05,20415.0,20414.0,0.06061]
[1673691627258,6e-05,20415.0,20414.0,0.51971]
[1673691627518,0.01326,20415.0,20414.0,0.8423041]
[1673691627761,0.00026,20415.0,20414.0,1.20813715]
[1673691628033,0.01526,20415.0,20414.0,0.92113715]
[1673691628277,0.01526,20415.0,20414.0,1.06203715]
[1673691628535,0.01526,20415.0,20414.0,0.24331]
[1673691628833,0.16285431,20423.0,20415.0,0.1]
[1673691629059,0.18040564,20425.0,20416.0,0.19072595]
[1673691629060,0.00097704,20421.0,20416.0,0.19072595]
[1673691629289,0.00097704,20421.0,20420.0,0.0797]
[1673691629534,0.0002,20421.0,20420.0,0.76864095]
[1673691629783,0.0002,20421.0,20420.0,0.677915]
[1673691630076,0.0002,20421.0,20420.0,0.977915]
[1673691630554,0.0002,20421.0,20420.0,0.0882]
[1673691630803,0.0002,20421.0,20420.0,0.0355]
[1673691630804,0.0152,20421.0,20420.0,0.0355]
[1673691631049,0.08067132,20430.0,20421.0,0.1]
[1673691631050,0.16677852,20430.0,20421.0,0.1]
[1673691631308,0.00095864,20428.0,20424.0,0.0789]
[1673691631599,0.00095864,20428.0,20425.0,0.19072595]
[1673691631842,0.00095864,20428.0,20424.0,0.0789]
[1673691631843,0.00095864,20428.0,20426.0,0.19072595]
[1673691632103,0.00095864,20428.0,20427.0,0.27042595]
[1673691632349,0.19553264,20432.0,20427.0,0.45638191]
[1673691632619,0.00095191,20432.0,20428.0,0.29072595]
[1673691632897,0.00095191,20432.0,20429.0,0.19072595]
[1673691633132,0.17716168,20435.0,20430.0,0.27042595]
[1673691633392,0.15054883,20434.0,20431.0,0.19922595]
[1673691633631,0.00098373,20435.0,20431.0,0.19922595]
[1673691633632,0.015,20432.0,20431.0,0.19922595]
[1673691633888,0.00019,20433.0,20431.0,0.0085]
[1673691633889,0.17757541,20433.0,20431.0,0.0085]
[1673691634131,0.013,20432.0,20430.0,0.0085]
[1673691634380,0.03205754,20432.0,20431.0,0.029]
[1673691634625,0.03205754,20432.0,20424.0,0.7349]
[1673691634626,1.60856485,20432.0,20424.0,0.7349]
[1673691634895,0.221301,20431.0,20426.0,0.19072595]
[1673691635244,0.15156459,20432.0,20430.0,0.17430691]
[1673691635456,0.00097983,20431.0,20430.0,0.14976542]
[1673691635718,0.15156459,20432.0,20430.0,0.14976542]
[1673691635719,0.17060757,20432.0,20430.0,0.14976542]
[1673691636212,0.16760757,20432.0,20431.0,0.06061]
[1673691636733,0.16460757,20432.0,20431.0,0.06061]
[1673691636966,0.16460757,20432.0,20427.0,0.589541]
[1673691636967,0.0797,20434.0,20425.0,0.76494153]
[1673691637224,0.0797,20434.0,20430.0,0.03]
[1673691637225,0.03598,20432.0,20430.0,0.03]
[1673691637489,0.1,20430.0,20427.0,0.00019]
[1673691637771,0.710801,20429.0,20427.0,0.00019]
[1673691638029,0.422804,20428.0,20427.0,0.00019]
[1673691638280,2.44033369,20428.0,20427.0,0.00019]
[1673691638535,2.81730342,20428.0,20427.0,0.00019]
[1673691638790,3.19916706,20428.0,20427.0,0.00019]
[1673691639038,3.19916706,20428.0,20424.0,0.01567602]
[1673691639302,0.0792,20425.0,20424.0,0.36598344]
[1673691639530,0.489524,20428.0,20426.0,0.1693022]
[1673691639785,0.626524,20428.0,20427.0,0.003]
[1673691640037,0.67810915,20429.0,20425.0,0.1534765]
[1673691640310,0.67712007,20429.0,20425.0,0.34420245]
[1673691640531,0.67712007,20429.0,20426.0,0.0085]
[1673691640532,0.15830242,20427.0,20426.0,0.0085]
[1673691640785,0.15830242,20427.0,20424.0,0.01567602]
[1673691640786,0.489548,20427.0,20424.0,0.01567602]
[1673691641031,0.322804,20426.0,20424.0,0.01567602]
[1673691641276,1.200493,20425.0,20424.0,0.01567602]
[1673691641526,0.979192,20425.0,20424.0,0.01567602]
[1673691642260,1.301996,20425.0,20424.0,0.01867602]
[1673691642524,1.401996,20425.0,20424.0,0.01567602]
[1673691642830,1.301996,20425.0,20424.0,0.01867602]
[1673691643051,1.301996,20425.0,20424.0,0.01567602]
[1673691643295,1.736996,20425.0,20424.0,0.01867602]
[1673691643533,2.0134104,20425.0,20424.0,0.01867602]
[1673691643783,2.39527404,20425.0,20424.0,0.01867602]
[1673691644031,2.41825404,20425.0,20424.0,0.01867602]
[1673691644280,2.84015573,20425.0,20424.0,0.01567602]
[1673691644536,2.97615573,20425.0,20424.0,0.01867602]
[1673691644788,2.97615573,20425.0,20424.0,0.01567602]
[1673691644789,2.84015573,20425.0,20424.0,0.01567602]
[1673691645041,2.84015573,20425.0,20424.0,0.01867602]
[1673691645326,2.97615573,20425.0,20424.0,0.00460293]
[1673691645545,3.62484904,20425.0,20424.0,2.93e-06]
[1673691645795,3.62484904,20425.0,20413.0,0.01638229]
[1673691645796,0.1,20422.0,20413.0,0.01638229]
[1673691646038,0.0797,20419.0,20414.0,0.18549595]
[1673691646292,0.0797,20419.0,20413.0,0.21374819]
[1673691646293,1.302354,20418.0,20413.0,0.21374819]
[1673691646537,1.36130403,20418.0,20413.0,0.21374819]
[1673691646785,0.97955,20418.0,20415.0,0.18028556]
[1673691647034,0.00095815,20418.0,20417.0,0.17897247]
[1673691647558,0.19008517,20423.0,20417.0,0.19072595]
[1673691647843,0.00099806,20422.0,20418.0,0.19072595]
[1673691648080,0.00099806,20422.0,20419.0,0.19922595]
[1673691648307,0.00119806,20422.0,20421.0,0.1]
[1673691648549,0.0002,20422.0,20421.0,0.056454]
[1673691649313,0.0152,20422.0,20421.0,0.056454]
[1673691650308,0.00442927,20423.0,20421.0,0.056454]
[1673691650596,0.015,20422.0,20421.0,0.074454]
[1673691650840,0.00442927,20423.0,20421.0,0.25003052]
[1673691651088,0.008,20422.0,20421.0,0.25003052]
[1673691651349,0.00442927,20423.0,20421.0,0.25003052]
[1673691651594,0.04142927,20423.0,20421.0,0.25303052]
[1673691651838,0.22403519,20423.0,20421.0,0.20092052]
[1673691653567,0.34447669,20423.0,20421.0,0.20092052]
[1673691653819,0.22403519,20423.0,20421.0,0.20092052]
[1673691654574,0.22403519,20423.0,20421.0,0.007344]
[1673691655636,0.19433715,20422.0,20421.0,0.007344]
[1673691657114,0.19433715,20422.0,20421.0,0.004344]
[1673691657365,0.23133715,20422.0,20421.0,0.007344]
[1673691659119,0.72100515,20422.0,20421.0,0.003]
[1673691659368,0.037,20422.0,20421.0,0.003]
[1673691659885,0.037,20422.0,20421.0,0.15739567]
[1673691660155,0.037,20422.0,20421.0,0.06361]
[1673691660495,0.037,20422.0,20421.0,0.80126897]
[1673691660708,0.037,20422.0,20421.0,0.653301]
[1673691661201,0.00442927,20423.0,20422.0,0.1]
[1673691661464,0.0002,20424.0,20423.0,0.1]
[1673691661711,0.19353726,20430.0,20423.0,0.92296995]
[1673691661712,0.00650003,20430.0,20423.0,0.92296995]
[1673691661968,0.00747929,20430.0,20424.0,0.87955411]
[1673691662229,0.00747929,20430.0,20426.0,0.1]
[1673691662230,0.00650003,20430.0,20426.0,0.1]
[1673691662481,0.00650003,20430.0,20427.0,0.68877395]
[1673691662972,0.00650003,20430.0,20428.0,0.19366442]
[1673691663262,0.01450003,20429.0,20428.0,0.86676442]
[1673691663484,0.00650003,20429.0,20428.0,0.86676442]
[1673691663746,0.01350003,20429.0,20428.0,0.0085]
[1673691663989,0.01350003,20429.0,20422.0,0.03878442]
[1673691663990,0.05746594,20429.0,20422.0,0.03878442]
[1673691664251,0.02298,20426.0,20422.0,0.03878442]
[1673691664498,0.710898,20425.0,20422.0,0.03878442]
[1673691664735,0.710898,20425.0,20422.0,0.21842407]
[1673691664736,0.489597,20425.0,20422.0,0.21842407]
[1673691664987,0.489597,20425.0,20422.0,0.03878442]
[1673691665240,0.63564443,20425.0,20422.0,0.03878442]
[1673691665554,0.02298,20423.0,20422.0,0.03878442]
[1673691665781,0.02298,20423.0,20422.0,0.08578442]
[1673691665782,2.56871285,20423.0,20422.0,0.08578442]
[1673691666023,2.86871285,20423.0,20422.0,0.03878442]
[1673691666279,3.01178061,20423.0,20422.0,0.04378442]
[1673691666537,3.01178061,20423.0,20422.0,0.03878442]
[1673691666838,3.01178061,20423.0,20422.0,0.04378442]
[1673691667125,3.14888132,20423.0,20422.0,0.03878442]
[1673691667365,3.14888132,20423.0,20414.0,0.01663906]
[1673691667366,4.02495886,20423.0,20414.0,0.01663906]
[1673691667617,4.02495886,20423.0,20414.0,0.20736501]
[1673691667618,0.02298,20420.0,20414.0,0.20736501]
[1673691667900,1.198789,20419.0,20414.0,0.01663906]
[1673691668190,0.1,20417.0,20414.0,0.01663906]
[1673691668448,0.219271,20416.0,20415.0,0.01606932]
[1673691668949,0.4898,20417.0,20415.0,0.01606932]
[1673691669463,0.5058,20417.0,20415.0,0.01606932]
[1673691669730,0.4898,20417.0,20414.0,0.18278439]
[1673691669968,0.089,20416.0,20415.0,0.05211]
[1673691670209,0.67290556,20418.0,20415.0,0.05211]
[1673691670463,0.089,20417.0,20415.0,0.006]
[1673691670789,0.19224193,20416.0,20415.0,0.006]
[1673691671292,0.489811,20416.0,20413.0,0.01638229]
[1673691671560,0.32283,20415.0,20413.0,0.01638229]
[1673691671817,0.219271,20414.0,20413.0,0.01638229]
[1673691672071,2.0676653,20414.0,20413.0,0.01638229]
[1673691672321,3.35331479,20414.0,20413.0,0.005]
[1673691672574,0.1,20413.0,20409.0,0.00021179]
[1673691672838,0.16688,20410.0,20409.0,0.00021179]
[1673691673080,2.84707852,20410.0,20409.0,0.00021179]
[1673691673407,2.63321769,20410.0,20409.0,0.00021179]
[1673691673619,3.01203499,20410.0,20409.0,0.00021179]
[1673691673862,0.00021,20409.0,20408.0,0.00127598]
[1673691674108,1.47905899,20409.0,20408.0,0.00127598]
[1673691674852,0.47934407,20409.0,20408.0,0.00108598]
[1673691675114,1.10307089,20409.0,20408.0,0.00108598]
[1673691675356,0.6258692,20409.0,20408.0,0.00108598]
[1673691675845,0.32283,20409.0,20408.0,0.00108598]
[1673691676097,0.42283,20409.0,20408.0,0.00108598]
[1673691676342,0.55883,20409.0,20408.0,0.00108598]
[1673691676589,0.94870108,20409.0,20408.0,0.00108598]
[1673691676839,0.75883,20409.0,20408.0,0.00108598]
[1673691677081,1.71484899,20409.0,20408.0,0.00108598]
[1673691677327,1.71384899,20409.0,20408.0,0.00108598]
[1673691677566,1.57884899,20409.0,20408.0,0.00108598]
[1673691677842,2.09240339,20409.0,20408.0,0.00108598]
[1673691678094,2.09240339,20409.0,20403.0,0.00019]
[1673691678095,0.00108,20408.0,20403.0,0.00019]
[1673691678342,0.02298,20404.0,20403.0,0.00019]
[1673691678673,2.67212599,20404.0,20401.0,0.01735212]
[1673691678894,1.37528999,20403.0,20401.0,0.01735212]
[1673691679145,1.893274,20402.0,20401.0,0.01735212]
[1673691679415,2.89319299,20402.0,20401.0,5.212e-05]
[1673691679696,2.89319299,20402.0,20394.0,0.00717531]
[1673691679697,0.1,20401.0,20394.0,0.00717531]
[1673691679979,2.28689956,20401.0,20394.0,0.16654879]
[1673691680214,1.109443,20401.0,20398.0,0.15994044]
[1673691680463,0.709443,20401.0,20399.0,0.15666151]
[1673691680715,0.709443,20401.0,20395.0,0.00019]
[1673691680716,0.845443,20401.0,20395.0,0.00019]
[1673691681028,0.845443,20401.0,20398.0,0.19969551]
[1673691681029,0.809443,20401.0,20398.0,0.19969551]
[1673691681279,1.65227995,20401.0,20395.0,0.00019]
[1673691681530,1.89609725,20401.0,20395.0,0.00019]
[1673691681779,2.17399725,20401.0,20400.0,4e-06]
[1673691682048,0.2431,20400.0,20395.0,4e-06]
[1673691682296,0.1436,20396.0,20395.0,4e-06]
[1673691682561,0.1436,20396.0,20394.0,0.00717531]
[1673691682562,1.690147,20396.0,20394.0,0.00717531]
[1673691682792,0.32283,20395.0,20394.0,0.00717531]
[1673691683045,0.42283,20395.0,20394.0,0.00717531]
[1673691683302,1.20003169,20395.0,20394.0,0.00717531]
[1673691683558,1.20003169,20395.0,20392.0,0.03]
[1673691683559,0.10717,20394.0,20392.0,0.03]
[1673691683804,0.36923594,20393.0,20392.0,0.03]
[1673691684051,0.22623594,20393.0,20392.0,0.03]
[1673691684294,0.00696494,20393.0,20392.0,0.03]
[1673691684790,0.14196494,20393.0,20392.0,0.21825671]
[1673691685043,0.78239512,20393.0,20392.0,0.03]
[1673691685287,1.10522512,20393.0,20392.0,0.03]
[1673691685534,0.97028512,20393.0,20392.0,0.03]
[1673691685793,1.34801914,20393.0,20392.0,0.03]
[1673691686282,1.92691914,20393.0,20392.0,0.03]
[1673691686532,2.28228314,20393.0,20392.0,0.00245859]
[1673691686802,0.1,20392.0,20385.0,0.5878]
[1673691687051,2.41828314,20393.0,20385.0,0.5878]
[1673691687052,0.219271,20391.0,20386.0,0.19072595]
[1673691687323,0.14202494,20393.0,20387.0,0.79072595]
[1673691687574,0.00099548,20391.0,20390.0,0.6]
[1673691687834,0.00099548,20391.0,20390.0,1.090436]
[1673691688082,0.016,20392.0,20390.0,1.198936]
[1673691688325,0.00702494,20393.0,20391.0,0.0085]
[1673691688614,0.00702494,20393.0,20391.0,0.498908]
[1673691688842,0.00702494,20393.0,20392.0,0.1]
[1673691689095,0.38775418,20401.0,20392.0,1.08111395]
[1673691689337,0.00095567,20398.0,20393.0,0.19072595]
[1673691689602,0.18009892,20401.0,20395.0,0.980614]
[1673691689848,0.18009892,20401.0,20396.0,0.19072595]
[1673691689849,0.0002,20397.0,20396.0,0.19072595]
[1673691690124,0.0002,20397.0,20393.0,0.590352]
[1673691690833,0.0002,20397.0,20394.0,0.0085]
[1673691691081,0.16932235,20396.0,20394.0,0.0085]
[1673691691338,0.0002,20397.0,20390.0,3.802526]
[1673691691580,0.490472,20397.0,20390.0,0.80664261]
[1673691691836,0.98314743,20396.0,20391.0,0.14970461]
[1673691692082,0.15734194,20395.0,20391.0,0.14970461]
[1673691692335,0.15734194,20395.0,20390.0,0.6096]
[1673691692336,0.98069,20394.0,20390.0,0.6096]
[1673691692580,0.62283,20393.0,20390.0,0.6096]
[1673691692833,1.200047,20392.0,20389.0,0.17007352]
[1673691693089,0.490388,20392.0,20391.0,0.15618618]
[1673691693343,0.64863771,20395.0,20387.0,0.61669]
[1673691693344,0.490347,20394.0,20387.0,0.61669]
[1673691693595,0.490398,20392.0,20387.0,0.61669]
[1673691693875,0.490398,20392.0,20388.0,0.17384266]
[1673691694093,0.3,20391.0,20385.0,0.70405212]
[1673691694346,0.98091,20390.0,20385.0,0.8037482]
[1673691694603,0.32283,20389.0,20386.0,0.17209384]
[1673691694890,0.490472,20389.0,20386.0,0.17209384]
[1673691695611,0.490472,20389.0,20385.0,0.60405212]
[1673691695858,0.490472,20389.0,20385.0,0.77488172]
[1673691696105,1.16779189,20389.0,20385.0,0.77488172]
[1673691696351,1.16779189,20389.0,20385.0,0.01735212]
[1673691696352,0.80003169,20388.0,20385.0,0.01735212]
[1673691696601,1.200287,20387.0,20385.0,0.01735212]
[1673691696846,0.32283,20386.0,20385.0,0.01735212]
[1673691697091,0.490532,20386.0,20385.0,0.01735212]
[1673691697347,1.48543866,20386.0,20385.0,0.01735212]
[1673691697588,1.78543866,20386.0,20385.0,0.01735212]
[1673691697832,1.00823697,20386.0,20385.0,0.01735212]
[1673691698099,1.88543866,20386.0,20385.0,0.01735212]
[1673691698601,2.61113677,20386.0,20385.0,0.01735212]
[1673691698855,1.92933866,20386.0,20385.0,0.01735212]
[1673691699098,0.4155728,20385.0,20380.0,1.0]
[1673691699357,0.4155728,20385.0,20380.0,1.19072595]
[1673691699358,0.01664719,20383.0,20380.0,1.19072595]
[1673691699605,0.01664719,20383.0,20380.0,1.0]
[1673691699843,0.01664719,20383.0,20381.0,0.1]
[1673691700348,0.01664719,20383.0,20382.0,0.19072595]
[1673691700609,0.01664719,20383.0,20382.0,1.060028]
[1673691700848,0.49042,20391.0,20385.0,0.1752125]
[1673691701104,0.1184,20385.0,20384.0,0.490571]
[1673691701389,0.00097961,20389.0,20385.0,0.0085]
[1673691701623,0.25,20392.0,20387.0,0.6]
[1673691701880,0.00097914,20392.0,20388.0,1.18016995]
[1673691702132,0.00097914,20392.0,20389.0,0.75162595]
[1673691702133,0.006,20391.0,20389.0,0.75162595]
[1673691702394,0.1435561,20396.0,20390.0,0.498936]
[1673691702661,0.19036134,20393.0,20391.0,0.19072595]
[1673691702877,0.19036134,20393.0,20392.0,0.0085]
[1673691703123,0.1,20396.0,20392.0,0.0085]
[1673691703124,0.513333,20394.0,20392.0,0.0085]
[1673691703369,0.19865284,20391.0,20389.0,0.5609]
[1673691703616,0.14302839,20391.0,20388.0,0.12]